fUSD/lending_fUSD_20240616
["ID","MTS","AMOUNT","RATE_DAILY","PERIOD"]
[329629428,1718515849249,-500.0,0.00021999,3]
[329629429,1718515849260,-587.17,0.00021999,3]
[329629430,1718515849288,-817.93,0.00021999,3]
[329629431,1718515849309,-828.54,0.00021999,3]
[329629432,1718515849326,-537.18,0.00021999,3]
[329629433,1718515849338,-992.83,0.00021999,3]
[329629434,1718515849370,-500.0,0.00021999,3]
[329629435,1718515849393,-500.0,0.00021999,3]
[329629436,1718515849406,-1566.04,0.00021999,3]
[329629437,1718515849417,-500.0,0.00021999,3]
[329629438,1718515849436,-7708.14,0.00021999,3]
[329629439,1718515849449,-500.0,0.00021999,3]
[329629440,1718515849464,-500.0,0.00021999,3]
[329629441,1718515849489,-500.0,0.00021999,3]
[329629442,1718515849505,-500.0,0.00021999,3]
[329629443,1718515849531,-1548.03150988,0.00022,2]
[329629444,1718515849570,-1548.03150988,0.00022,2]
[329629445,1718515849583,-1548.03150988,0.00022,2]
[329629446,1718515849594,-1548.03150988,0.00022,2]
[329629447,1718515849607,-1548.03150988,0.00022,2]
[329629448,1718515849628,-1548.03150988,0.00022,2]
[329629449,1718515849641,-1548.03150988,0.00022,2]
[329629450,1718515849653,-1548.03150988,0.00022,2]
[329629451,1718515849676,-1548.03150988,0.00022,2]
[329629452,1718515849689,-1548.03150988,0.00022,2]
[329629453,1718515849733,-1548.03150988,0.00022,2]
[329629454,1718515849755,-1548.03150988,0.00022,2]
[329629455,1718515849768,-1548.03150988,0.00022,2]
[329629456,1718515849783,-1548.03150988,0.00022,2]
[329629457,1718515849801,-1548.03150988,0.00022,2]
[329629458,1718515849815,-1548.03150988,0.00022,2]
[329629459,1718515849828,-1548.03150988,0.00022,2]
[329629460,1718515849840,-1548.03150988,0.00022,2]
[329629461,1718515849871,-1548.03150988,0.00022,2]
[329629462,1718515849894,-1548.03150988,0.00022,2]
[329629463,1718515849924,-1548.03150988,0.00022,2]
[329629464,1718515849936,-1548.03150988,0.00022,2]
[329629465,1718515849953,-1548.03150988,0.00022,2]
[329629466,1718515849965,-1548.03150988,0.00022,2]
[329629467,1718515849992,-1548.03150988,0.00022,2]
[329629468,1718515850022,-1548.03150988,0.00022,2]
[329629469,1718515850050,-1548.03150988,0.00022,2]
[329629470,1718515850074,-1548.03150988,0.00022,2]
[329629471,1718515850088,-1548.03150988,0.00022,2]
[329629472,1718515850103,-1548.03150988,0.00022,2]
[329629473,1718515850128,-1548.03150988,0.00022,2]
[329629474,1718515850148,-1548.03150988,0.00022,2]
[329629475,1718515850160,-1548.03150988,0.00022,2]
[329629476,1718515850185,-1548.03150988,0.00022,2]
[329629477,1718515850202,-1548.03150988,0.00022,2]
[329629478,1718515850224,-1548.03150988,0.00022,2]
[329629479,1718515850239,-1548.03150988,0.00022,2]
[329629480,1718515850284,-1548.03150988,0.00022,2]
[329629481,1718515850304,-1548.03150988,0.00022,2]
[329629482,1718515850316,-1548.03150988,0.00022,2]
[329629483,1718515850330,-730.51,0.00022051,2]
[329629484,1718515850348,-164.84,0.00022086,2]
[329629485,1718515850360,-161.1018251,0.00022091,2]
[329629486,1718515850376,-436.58392066,0.0002219,2]
[329629487,1718515850388,-192.74096797,0.0002219,2]
[329629488,1718515850412,-469.36357268,0.0002219,2]
[329629489,1718515850432,-1317.28433893,0.00022191,2]
[329629490,1718515850446,-500.0,0.00022191,3]
[329629491,1718515850473,-500.0,0.00022191,3]
[329629492,1718515850485,-500.0,0.00022191,3]
[329629493,1718515850507,-500.0,0.00022191,3]
[329629494,1718515850518,-556.56708421,0.00022191,3]
[329629495,1718515850538,-500.0,0.00022191,3]
[329629496,1718515850564,-500.0,0.00022191,3]
[329629497,1718515850584,-500.0,0.00022191,3]
[329629498,1718515850596,-500.0,0.00022191,3]
[329629499,1718515850609,-500.0,0.00022191,3]
[329629500,1718515850630,-500.0,0.00022191,3]
[329629501,1718515850683,-354.82825421,0.00022191,3]
[329629527,1718515851331,-232.56474406,0.00021999,3]
[329629529,1718515851343,-179.14174579,0.00022191,3]
[329629532,1718515851357,-500.0,0.00022191,3]
[329629533,1718515851368,-500.0,0.00022191,3]
[329629536,1718515851384,-500.0,0.00022191,3]
[329629538,1718515851408,-947.02,0.00022191,3]
[329629540,1718515851425,-60.25912283,0.00022191,3]
[329629602,1718515867164,500.0,0.000251,30]
[329629603,1718515867662,500.0,0.000251,30]
[329629604,1718515868199,500.0,0.000251,30]
[329629605,1718515868681,500.0,0.000251,30]
[329629606,1718515869249,501.59406825,0.000251,30]
[329629607,1718515883381,1613.51618691,0.000171,2]
[329629608,1718515883433,30295.58765591,0.000171,2]
[329629614,1718516045259,12836.39952357,0.000118,2]
[329629615,1718516070454,13590.36426872,6.94e-05,2]
[329629616,1718516072111,290.10514488,0.000118,2]
[329629617,1718516074318,155.0,0.000118,2]
[329629618,1718516085812,290.56885752,0.000118,2]
[329629619,1718516086201,155.70037917,0.000118,2]
[329629620,1718516087212,142558.8347769,0.000118,2]
[329629621,1718516112364,-209.64860058,0.00011798,2]
[329629622,1718516112418,-1024.27308806,0.00011799,2]
[329629623,1718516112451,-300.0,0.00011799,2]
[329629624,1718516112531,-300.0,0.00011799,2]
[329629625,1718516112583,-18166.07831136,0.000118,2]
[329629626,1718516112909,-20000.0,0.000118,2]
[329629627,1718516113695,-20000.0,0.000118,2]
[329629628,1718516114665,-20000.0,0.000118,2]
[329629629,1718516115617,-14483.99895947,0.000118,2]
[329629630,1718516121107,328.19325312,0.00011799,2]
[329629631,1718516192720,1651.0,0.0001,2]
[329629632,1718516192765,15601.60372263,0.0001,2]
[329629633,1718516220415,-543.38783253,0.00012715,2]
[329629634,1718516220461,-1338.93919493,0.00012716,2]
[329629635,1718516220510,-283.24040768,0.00012717,2]
[329629636,1718516220553,-1034.0,0.00012718,2]
[329629637,1718516220594,-207.65808306,0.0001272,2]
[329629638,1718516220641,-158.5522861,0.00012721,2]
[329629639,1718516220685,-805.64377118,0.00012823,2]
[329629640,1718516220748,-587.34057785,0.00012825,2]
[329629641,1718516220784,-307.31,0.0001389,2]
[329629642,1718516220836,-230.55,0.0001399,3]
[329629643,1718516220870,-691.66,0.0001399,3]
[329629644,1718516220900,-150.0,0.00013997,2]
[329629645,1718516220947,-1250.47073675,0.00013998,2]
[329629646,1718516221005,-150.99,0.00013998,2]
[329629647,1718516221041,-499.99,0.00013998,2]
[329629648,1718516221069,-437.76887833,0.00013999,2]
[329629649,1718516221102,-224.99,0.00013999,2]
[329629650,1718516221243,-3247247.50823159,0.00014,2]
[329629651,1718516230244,290.04474965,0.0001,2]
[329629652,1718516230764,13117.66770903,0.0001,2]
[329629653,1718516230805,6675.83318088,0.0001,2]
[329629654,1718516233460,363.26147488,0.0001,2]
[329629655,1718516237076,398.92077112,0.0001,2]
[329629656,1718516241220,-20000.0,0.00011799,2]
[329629657,1718516251360,363.26147488,0.0001,2]
[329629658,1718516258730,19442.03433389,0.0001,2]
[329629659,1718516271385,363.66483454,0.0001,2]
[329629660,1718516277704,35346.24313042,0.0001,2]
[329629663,1718516428709,8368.89265555,0.0001,2]
[329629664,1718516428798,301.31067515,0.0001,2]
[329629666,1718516606993,-207.42277815,0.000285,120]
[329629670,1718516807543,164.12,9.731e-05,2]
[329629673,1718516856003,920.35,0.0001027,2]
[329629676,1718516974162,-155.0,0.00011503,2]
[329629677,1718516974210,-667.241431,0.00011504,2]
[329629678,1718516974242,-155.0,0.00011562,2]
[329629679,1718516974273,-491.10975792,0.00011562,2]
[329629680,1718516974309,-264.09296082,0.00011563,2]
[329629681,1718516974340,-205.87538729,0.00011564,2]
[329629682,1718516974387,-525.92177641,0.00011564,2]
[329629683,1718516974431,-1254.57506773,0.00011564,2]
[329629684,1718516974477,-2339.1107069,0.00011565,2]
[329629685,1718516974561,-155.0,0.00011565,2]
[329629686,1718516974588,-532.05845602,0.00011566,2]
[329629687,1718516974616,-716.68717565,0.00011566,2]
[329629688,1718516974650,-150.0,0.00011626,2]
[329629689,1718516974681,-472.86645304,0.00011628,2]
[329629690,1718516974718,-150.0,0.00011726,2]
[329629691,1718516974760,-2414.05302723,0.00011892,2]
[329629692,1718516974794,-2611.39152184,0.00011955,2]
[329629693,1718516974832,-9326.36075212,0.00011956,2]
[329629694,1718516974878,-836.73680796,0.00011957,2]
[329629695,1718516974916,-190.32,0.00011959,2]
[329629696,1718516974975,-150.0,0.00012127,2]
[329629697,1718516975022,-1000.0,0.00012257,2]
[329629698,1718516975067,-6281.76,0.00012279,2]
[329629699,1718516975122,-250.0,0.00012292,2]
[329629700,1718516975164,-4453.43741383,0.00012296,2]
[329629701,1718516975221,-672.94387223,0.00012297,2]
[329629702,1718516975255,-500.0,0.00012321,2]
[329629703,1718516975300,-250.0,0.00012362,2]
[329629704,1718516975351,-3059.0242952,0.00012365,2]
[329629724,1718517033118,-1102.9957048,0.00012365,2]
[329629725,1718517033140,-1083.47887804,0.00012445,2]
[329629726,1718517034152,-715.50870511,0.00012445,2]
[329629727,1718517034305,-3152.39241685,0.00012445,2]
[329629728,1718517034328,-3296.48,0.00012476,2]
[329629729,1718517034339,-920.35,0.00012534,2]
[329629730,1718517034353,-23449.11,0.00012592,2]
[329629731,1718517034363,-171.02,0.00012653,2]
[329629732,1718517034374,-1115.86,0.00012726,2]
[329629733,1718517034385,-152.86,0.00012937,2]
[329629734,1718517034395,-2593.93,0.00012943,2]
[329629735,1718517034409,-152.86,0.00013021,2]
[329629736,1718517034420,-3747.46,0.00013105,2]
[329629737,1718517034431,-152.86,0.00013105,2]
[329629738,1718517034466,-152.86,0.00013189,2]
[329629739,1718517034477,-152.86,0.00013274,2]
[329629740,1718517034502,-152.86,0.00013358,2]
[329629741,1718517034531,-152.86,0.00013442,2]
[329629742,1718517034550,-152.86,0.00013527,2]
[329629743,1718517034570,-152.86,0.00013611,2]
[329629744,1718517034589,-2751.0,0.00013699,2]
[329629745,1718517034605,-1035.68,0.00013699,2]
[329629746,1718517034617,-200.0,0.00013699,2]
[329629747,1718517034628,-155.82,0.00013703,2]
[329629748,1718517034638,-155.82,0.00013707,2]
[329629749,1718517034649,-155.82,0.00013712,2]
[329629750,1718517034659,-155.82,0.00013717,2]
[329629751,1718517034670,-155.82,0.00013722,2]
[329629752,1718517034690,-155.82,0.00013727,2]
[329629753,1718517034701,-155.82,0.00013732,2]
[329629754,1718517034711,-155.82,0.00013737,2]
[329629755,1718517034726,-155.82,0.00013742,2]
[329629756,1718517034737,-155.82,0.00013747,2]
[329629757,1718517034748,-155.82,0.00013752,2]
[329629758,1718517034760,-155.82,0.00013756,2]
[329629759,1718517034773,-155.82,0.00013761,2]
[329629760,1718517034784,-155.82,0.00013766,2]
[329629761,1718517034794,-155.82,0.00013771,2]
[329629762,1718517034812,-1000.0,0.00013789,2]
[329629763,1718517034826,-356.83656917,0.00013922,2]
[329629764,1718517034857,-187.35795569,0.00013922,2]
[329629765,1718517034873,-200.36077415,0.0001393,2]
[329629766,1718517034884,-461.1,0.0001399,3]
[329629767,1718517034895,-473.77028062,0.00013997,2]
[329629768,1718517034950,-155.0,0.00013997,2]
[329629769,1718517034962,-530.74380915,0.00013998,2]
[329629770,1718517034992,-156.43616173,0.00013998,2]
[329629771,1718517035012,-156.09103806,0.00013998,2]
[329629772,1718517035026,-155.79468526,0.00013998,2]
[329629773,1718517035062,-203.43345653,0.00013998,2]
[329629774,1718517035102,-173.00345735,0.00013998,2]
[329629775,1718517035135,-572.52090818,0.00013998,2]
[329629776,1718517035149,-162.93041332,0.00013998,2]
[329629777,1718517035161,-173.69635434,0.00013998,2]
[329629778,1718517035171,-159.46383865,0.00013998,2]
[329629779,1718517035187,-162.89130141,0.00013998,2]
[329629780,1718517035201,-155.0,0.00013998,2]
[329629781,1718517035212,-155.56768494,0.00013998,2]
[329629782,1718517035225,-2641.82438389,0.00013998,2]
[329629783,1718517035235,-204.60843838,0.00013998,2]
[329629784,1718517035246,-172.61204215,0.00013998,2]
[329629785,1718517035261,-202.70272371,0.00013998,2]
[329629786,1718517035272,-162.87886366,0.00013998,2]
[329629787,1718517035284,-155.98937139,0.00013998,2]
[329629788,1718517035298,-237.76083537,0.00013998,2]
[329629789,1718517035308,-309.1669158,0.00013998,2]
[329629790,1718517035322,-156.24150522,0.00013998,2]
[329629791,1718517035333,-193.81969139,0.00013998,2]
[329629792,1718517035345,-199.4746306,0.00013998,2]
[329629793,1718517035361,-156.18515953,0.00013998,2]
[329629794,1718517035379,-155.7134273,0.00013998,2]
[329629795,1718517035391,-229.16327866,0.00013998,2]
[329629796,1718517035404,-191.96829413,0.00013998,2]
[329629797,1718517035419,-182.45607194,0.00013998,2]
[329629798,1718517035429,-202.24125152,0.00013998,2]
[329629799,1718517035441,-155.96518741,0.00013998,2]
[329629800,1718517035452,-315.47830338,0.00013998,2]
[329629801,1718517035464,-159.52846959,0.00013998,2]
[329629802,1718517035491,-1504.47465489,0.00013998,2]
[329629803,1718517035509,-172.56131908,0.00013998,2]
[329629804,1718517035529,-2289.24640915,0.00013998,2]
[329629805,1718517035553,-162.95274086,0.00013998,2]
[329629806,1718517035564,-182.46510605,0.00013998,2]
[329629807,1718517035577,-285.20270788,0.00013998,2]
[329629808,1718517035589,-155.24609713,0.00013998,2]
[329629809,1718517035610,-953.68616154,0.00013998,2]
[329629810,1718517035624,-1025.08235423,0.00013998,2]
[329629811,1718517035634,-196.43866992,0.00013998,2]
[329629812,1718517035645,-585.20069425,0.00013998,2]
[329629813,1718517035885,-1169.67368341,0.00013998,2]
[329629814,1718517035904,-2355.97933553,0.00013998,2]
[329629815,1718517035916,-158.80199446,0.00013998,2]
[329629816,1718517035927,-422.76429736,0.00013998,2]
[329629817,1718517035937,-291.45983561,0.00013998,2]
[329629818,1718517035949,-205.82075141,0.00013998,2]
[329629819,1718517035985,-248.40330096,0.00013998,2]
[329629820,1718517036006,-508.45064715,0.00013998,2]
[329629821,1718517036048,-284.7510073,0.00013999,2]
[329629822,1718517036062,-131149.16432962,0.00014,2]
[329629823,1718517040691,-350782.84969523,0.00014,2]
[329629824,1718517040705,-1602.51127227,0.00014022,2]
[329629825,1718517040730,-1965.62,0.00014122,2]
[329629826,1718517040742,-300.0,0.000147,5]
[329629827,1718517040753,-920.35,0.00014797,2]
[329629828,1718517040769,-600.0,0.000148,5]
[329629829,1718517040786,-2373.0,0.00014852,2]
[329629830,1718517040800,-17877.20408496,0.000149,2]
[329629831,1718517040819,-167.12061151,0.000149,2]
[329629832,1718517040857,-900.0,0.000149,5]
[329629833,1718517040881,-1441.46306651,0.000149,2]
[329629834,1718517040912,-356.83656917,0.00014904,2]
[329629835,1718517040960,-207.48520993,0.0001499,2]
[329629836,1718517040987,-153.15,0.0001499,2]
[329629837,1718517040999,-153.15,0.0001499,2]
[329629838,1718517041021,-153.15,0.0001499,2]
[329629839,1718517041050,-82284.08873377,0.00015,2]
[329629856,1718517041425,-1055920.58293382,0.00015,2]
[329629859,1718517041446,-221.60072331,0.00015,2]
[329629861,1718517041458,-628.51904781,0.00015,2]
[329629862,1718517041471,-155.42218223,0.00015,2]
[329629864,1718517041492,-155.68448101,0.00015,2]
[329629866,1718517041530,-163.94,0.00015077,2]
[329629869,1718517041574,-4951.38,0.00015185,2]
[329629871,1718517041584,-1000.0,0.00015321,2]
[329629873,1718517041600,-171.679045,0.00015342,2]
[329629875,1718517041612,-156.63280992,0.00015388,2]
[329629877,1718517041625,-1602.51127221,0.0001581,2]
[329629879,1718517041639,-177.26,0.00015831,2]
[329629881,1718517041650,-356.83656917,0.00015886,2]
[329629883,1718517041662,-153.15,0.00016051,2]
[329629885,1718517041680,-17877.20408493,0.00016061,2]
[329629887,1718517041692,-171.679045,0.00016164,2]
[329629889,1718517041719,-204.67,0.00016438,2]
[329629891,1718517041760,-324.0,0.0001647,2]
[329629892,1718517041783,-1813.1109152,0.000165,2]
[329629895,1718517041800,-180.54,0.00016712,2]
[329629897,1718517041832,-1000.0,0.00016853,2]
[329629898,1718517041844,-356.83656917,0.00016868,2]
[329629900,1718517041855,-324.0,0.0001693,2]
[329629902,1718517041875,-171.679045,0.00016986,2]
[329629904,1718517041911,-2488.75759572,0.00017,2]
[329629906,1718517041929,-920.35,0.00017061,2]
[329629908,1718517041959,-633.28660486,0.00017098,2]
[329629910,1718517041989,-160.71245654,0.00017098,2]
[329629912,1718517042003,-299.19426933,0.00017098,2]
[329629914,1718517042019,-295.89778727,0.00017098,2]
[329629916,1718517042031,-155.37877299,0.00017098,2]
[329629917,1718517042044,-201.47039798,0.00017098,2]
[329629919,1718517042057,-938.47449013,0.00017098,2]
[329629921,1718517042072,-351.47820941,0.00017099,2]
[329629923,1718517042086,-956.37533841,0.00017099,2]
[329629924,1718517042100,-1078.09225663,0.000171,2]
[329629926,1718517042115,-17877.20408493,0.00017222,2]
[329629929,1718517042129,-324.0,0.0001738,2]
[329629931,1718517042140,-1602.51127221,0.00017599,2]
[329629933,1718517042156,-171.679045,0.00017808,2]
[329629935,1718517042167,-324.0,0.0001783,2]
[329629936,1718517042181,-356.83656917,0.0001785,2]
[329629938,1718517042194,-4951.38,0.00017924,2]
[329629940,1718517042205,-658.36068367,0.00018,2]
[329629942,1718517042222,-324.0,0.0001829,2]
[329629944,1718517042245,-17877.20408493,0.00018383,2]
[329629946,1718517042267,-1000.0,0.00018385,2]
[329629949,1718517042289,-316.7,0.00018502,2]
[329629951,1718517042302,-171.679045,0.0001863,2]
[329629953,1718517042314,-324.0,0.0001874,2]
[329629955,1718517042330,-356.83656917,0.00018832,2]
[329629957,1718517042345,-157.31092995,0.00019,2]
[329629959,1718517042369,-500.0,0.00019178,2]
[329629961,1718517042393,-197.02572764,0.00019178,2]
[329629963,1718517042407,-450.93190669,0.00019178,2]
[329629965,1718517042421,-563.33878563,0.00019178,2]
[329629967,1718517042435,-390.93458858,0.00019178,2]
[329629969,1718517042450,-500.0,0.00019178,2]
[329629971,1718517042464,-500.0,0.00019178,2]
[329629973,1718517042480,-500.0,0.00019178,2]
[329629976,1718517042505,-500.0,0.00019178,2]
[329629978,1718517042529,-500.0,0.00019178,2]
[329629980,1718517042540,-500.0,0.00019178,2]
[329629982,1718517042554,-316.66192009,0.00019178,2]
[329629984,1718517042566,-372.47885479,0.00019178,2]
[329629985,1718517042580,-500.0,0.00019178,2]
[329629986,1718517042591,-500.0,0.00019178,2]
[329629987,1718517042601,-500.0,0.00019178,2]
[329629988,1718517042628,-500.0,0.00019178,2]
[329629989,1718517042638,-500.0,0.00019178,2]
[329629990,1718517042651,-500.0,0.00019178,2]
[329629991,1718517042662,-500.0,0.00019178,2]
[329629992,1718517042672,-500.0,0.00019178,2]
[329629993,1718517042685,-500.0,0.00019178,2]
[329629994,1718517042702,-161.31393937,0.00019178,2]
[329629996,1718517042726,-500.0,0.00019178,2]
[329629998,1718517042738,-500.0,0.00019178,2]
[329629999,1718517042756,-500.0,0.00019178,2]
[329630001,1718517042796,-500.0,0.00019178,2]
[329630002,1718517042810,-1035.68,0.00019178,2]
[329630004,1718517042827,-324.0,0.000192,2]
[329630005,1718517042841,-920.35,0.00019325,2]
[329630008,1718517042856,-1602.51127221,0.00019387,2]
[329630010,1718517042868,-316.7,0.00019427,2]
[329630012,1718517042900,-171.679045,0.00019452,2]
[329630013,1718517042911,-17877.20408493,0.00019544,2]
[329630016,1718517042934,-324.0,0.0001965,2]
[329630017,1718517042946,-427.82214329,0.00019724,2]
[329630019,1718517042957,-356.83656917,0.00019814,2]
[329630021,1718517042976,-159.35916726,0.0002,2]
[329630023,1718517042992,-216.89839034,0.0002,2]
[329630025,1718517043005,-10297.22157776,0.0002,2]
[329630026,1718517043023,-324.0,0.000201,2]
[329630029,1718517043046,-171.679045,0.00020274,2]
[329630031,1718517043077,-316.7,0.00020352,2]
[329630032,1718517043090,-324.0,0.0002056,2]
[329630034,1718517043103,-777.0,0.000206,2]
[329630037,1718517043132,-3337.0,0.000206,2]
[329630039,1718517043155,-17877.20408493,0.00020705,2]
[329630041,1718517043170,-356.83656917,0.00020796,2]
[329630042,1718517043183,-1250.0,0.00021,2]
[329630044,1718517043198,-324.0,0.0002101,2]
[329630046,1718517043213,-171.679045,0.00021096,2]
[329630048,1718517043228,-1602.51127221,0.00021175,2]
[329630050,1718517043244,-316.7,0.00021277,2]
[329630052,1718517043260,-324.0,0.0002147,2]
[329630054,1718517043273,-920.35,0.00021589,2]
[329630056,1718517043292,-174.028,0.00021717,2]
[329630058,1718517043306,-356.83656917,0.00021778,2]
[329630060,1718517043319,-249.76388611,0.00021793,2]
[329630062,1718517043336,-2494.92302659,0.00021795,2]
[329630064,1718517043348,-1300.0,0.000218,7]
[329630065,1718517043362,-171.36834506,0.00021815,2]
[329630067,1718517043392,-194.23471379,0.00021815,2]
[329630068,1718517043405,-194.83685703,0.00021815,2]
[329630070,1718517043422,-159.18989705,0.00021815,2]
[329630072,1718517043452,-156.4544626,0.00021815,2]
[329630073,1718517043466,-549.01211104,0.00021815,2]
[329630076,1718517043488,-189.42904866,0.00021815,2]
[329630078,1718517043500,-770.21418576,0.00021815,2]
[329630080,1718517043515,-561.47754647,0.00021815,2]
[329630082,1718517043534,-157.88105111,0.00021815,2]
[329630084,1718517043549,-372.94873447,0.00021815,2]
[329630086,1718517043562,-249.4215124,0.00021815,2]
[329630088,1718517043575,-267.2374489,0.00021815,2]
[329630090,1718517043599,-180.50862676,0.00021815,2]
[329630092,1718517043610,-321.71082151,0.00021815,2]
[329630094,1718517043626,-156.17177733,0.00021815,2]
[329630096,1718517043648,-1403.32727994,0.00021815,2]
[329630099,1718517043693,-163.02774784,0.00021815,2]
[329630101,1718517043714,-3369.49144835,0.00021815,2]
[329630102,1718517043726,-316.93385467,0.00021815,2]
[329630104,1718517043738,-156.20206968,0.00021815,2]
[329630107,1718517043752,-176.24929184,0.00021815,2]
[329630108,1718517043766,-155.44404892,0.00021815,2]
[329630111,1718517043789,-407.76106627,0.00021815,2]
[329630114,1718517043812,-280.26857614,0.00021815,2]
[329630115,1718517043834,-914.79678101,0.00021815,2]
[329630117,1718517043850,-433.79030264,0.00021815,2]
[329630118,1718517043863,-7534.4655871,0.00021815,2]
[329630120,1718517043877,-202.63662665,0.00021816,2]
[329630121,1718517043917,-40716.4236,0.00021817,2]
[329630123,1718517043948,-16160.1061,0.00021817,2]
[329630125,1718517043973,-680.60090918,0.00021817,2]
[329630127,1718517043992,-17877.20408493,0.00021865,2]
[329630129,1718517044013,-193.0,0.00021888,15]
[329630131,1718517044034,-150.5,0.00021888,15]
[329630132,1718517044059,-193.0,0.00021898,15]
[329630133,1718517044091,-150.5,0.00021898,15]
[329630134,1718517044111,-1600.0,0.000219,7]
[329630135,1718517044127,-189.32465771,0.000219,2]
[329630136,1718517044148,-331.4,0.000219,2]
[329630137,1718517044159,-3282.30824672,0.000219,2]
[329630138,1718517044171,-388.17840637,0.000219,2]
[329630139,1718517044186,-153.15,0.00021907,2]
[329630140,1718517044198,-245.76,0.00021907,15]
[329630141,1718517044228,-193.0,0.00021908,15]
[329630142,1718517044254,-150.5,0.00021908,15]
[329630143,1718517044289,-163.85142529,0.00021916,2]
[329630144,1718517044312,-500.0,0.00021917,2]
[329630145,1718517044339,-500.0,0.00021917,2]
[329630146,1718517044367,-500.0,0.00021917,2]
[329630147,1718517044389,-500.0,0.00021917,2]
[329630148,1718517044402,-500.0,0.00021917,2]
[329630149,1718517044417,-500.0,0.00021917,2]
[329630150,1718517044478,-500.0,0.00021917,2]
[329630151,1718517044492,-500.0,0.00021917,2]
[329630152,1718517044505,-500.0,0.00021917,2]
[329630153,1718517044522,-500.0,0.00021917,2]
[329630154,1718517044537,-500.0,0.00021917,2]
[329630155,1718517044557,-500.0,0.00021917,2]
[329630156,1718517044569,-428.82953335,0.00021917,2]
[329630157,1718517044591,-500.0,0.00021917,2]
[329630158,1718517044628,-556.49318913,0.00021917,2]
[329630159,1718517044640,-500.0,0.00021917,2]
[329630160,1718517044655,-500.0,0.00021917,2]
[329630161,1718517044675,-500.0,0.00021917,2]
[329630162,1718517044699,-500.0,0.00021917,2]
[329630163,1718517044712,-500.0,0.00021917,2]
[329630164,1718517044726,-500.0,0.00021917,2]
[329630165,1718517044737,-500.0,0.00021917,2]
[329630166,1718517044748,-500.0,0.00021917,2]
[329630167,1718517044768,-500.0,0.00021917,2]
[329630168,1718517044798,-500.0,0.00021917,2]
[329630169,1718517044832,-500.0,0.00021917,2]
[329630170,1718517044861,-500.0,0.00021917,2]
[329630171,1718517044876,-500.0,0.00021917,2]
[329630172,1718517044888,-500.0,0.00021917,2]
[329630173,1718517044899,-500.0,0.00021917,2]
[329630174,1718517044912,-500.0,0.00021917,2]
[329630175,1718517044930,-500.0,0.00021917,2]
[329630176,1718517044942,-500.0,0.00021917,2]
[329630177,1718517044954,-500.0,0.00021917,2]
[329630178,1718517044966,-500.0,0.00021917,2]
[329630179,1718517044983,-447.33297717,0.00021917,2]
[329630180,1718517044994,-500.0,0.00021917,2]
[329630181,1718517045008,-500.0,0.00021917,2]
[329630182,1718517045028,-500.0,0.00021917,2]
[329630183,1718517045064,-500.0,0.00021917,2]
[329630184,1718517045086,-500.0,0.00021917,2]
[329630185,1718517045099,-500.0,0.00021917,2]
[329630186,1718517045132,-500.0,0.00021917,2]
[329630187,1718517045165,-500.0,0.00021917,2]
[329630188,1718517045183,-500.0,0.00021917,2]
[329630189,1718517045209,-500.0,0.00021917,2]
[329630190,1718517045229,-500.0,0.00021917,2]
[329630191,1718517045241,-500.0,0.00021917,2]
[329630192,1718517045251,-500.0,0.00021917,2]
[329630193,1718517045264,-500.0,0.00021917,2]
[329630194,1718517045281,-500.0,0.00021917,2]
[329630195,1718517045292,-500.0,0.00021917,2]
[329630196,1718517045316,-500.0,0.00021917,2]
[329630197,1718517045329,-500.0,0.00021917,2]
[329630198,1718517045349,-500.0,0.00021917,2]
[329630199,1718517045362,-500.0,0.00021917,2]